[Event "Paul Kerese Mälestusfestival 2022 Kiirturniir"]
[Site "Pärnu, Estonia Resort Hotel & Spa"]
[Date "????.??.??"]
[Round "3.7"]
[White "Mikko, Rondo"]
[Black "Golubovskis, Maksims"]
[Result "1/2-1/2"]
[TimeControl "15 minutit partiile + 3 sek käigule"]
[BlackTitle "FM"]
[WhiteElo "1893"]
[BlackElo "2209"]

1. Nf3 {[%clk 00:15:03]} {[%emt 00:00:01]} Nf6 {[%clk 00:15:05]} {[%emt
00:00:01]} 2. g3 {[%clk 00:15:05]} {[%emt 00:00:02]} c5 {[%clk 00:14:56]}
{[%emt 00:00:12]} 3. Bg2 {[%clk 00:15:05]} {[%emt 00:00:03]} Nc6 {[%clk
00:14:58]} 4. O-O {[%clk 00:15:05]} {[%emt 00:00:03]} e5 {[%clk 00:15:00]} 5.
d3 {[%clk 00:15:04]} {[%emt 00:00:05]} d5 {[%clk 00:14:58]} {[%emt 00:00:04]} 6.
Nbd2 {[%clk 00:15:01]} {[%emt 00:00:06]} Be7 {[%clk 00:15:01]} 7. e4 {[%clk
00:14:59]} {[%emt 00:00:06]} d4 {[%clk 00:15:03]} 8. a4 {[%clk 00:14:51]}
{[%emt 00:00:11]} O-O {[%clk 00:15:04]} {[%emt 00:00:02]} 9. Nc4 {[%clk
00:14:29]} {[%emt 00:00:25]} Qc7 {[%clk 00:14:54]} {[%emt 00:00:12]} 10. Bg5
{[%clk 00:13:32]} {[%emt 00:01:01]} Be6 {[%clk 00:14:46]} {[%emt 00:00:11]} 11.
Nfd2 {[%clk 00:13:28]} {[%emt 00:00:07]} Nd7 {[%clk 00:13:26]} {[%emt
00:01:22]} 12. Bxe7 {[%clk 00:13:16]} {[%emt 00:00:16]} Nxe7 {[%clk 00:13:27]}
{[%emt 00:00:01]} 13. f4 {[%clk 00:13:17]} {[%emt 00:00:02]} f5 {[%clk
00:11:06]} {[%emt 00:02:25]} 14. Nxe5 {[%clk 00:12:58]} {[%emt 00:00:22]} Nxe5
{[%clk 00:10:50]} {[%emt 00:00:18]} 15. fxe5 {[%clk 00:12:59]} {[%emt
00:00:03]} Qxe5 {[%clk 00:10:28]} {[%emt 00:00:25]} 16. Qh5 {[%clk 00:12:15]}
{[%emt 00:00:47]} Bf7 {[%clk 00:09:24]} {[%emt 00:01:07]} 17. Qg5 {[%clk
00:11:58]} {[%emt 00:00:20]} h6 {[%clk 00:09:07]} {[%emt 00:00:21]} 18. Qf4
{[%clk 00:11:46]} {[%emt 00:00:15]} Qxf4 {[%clk 00:09:06]} {[%emt 00:00:04]} 19.
gxf4 {[%clk 00:11:44]} {[%emt 00:00:05]} fxe4 {[%clk 00:08:51]} {[%emt
00:00:17]} 20. dxe4 {[%clk 00:11:05]} {[%emt 00:00:44]} Rad8 {[%clk 00:08:10]}
{[%emt 00:00:44]} 21. Rae1 {[%clk 00:10:19]} {[%emt 00:00:48]} Nc6 {[%clk
00:03:37]} {[%emt 00:04:37]} 22. e5 {[%clk 00:09:17]} {[%emt 00:01:05]} Bg6
{[%clk 00:02:52]} {[%emt 00:00:48]} 23. Be4 {[%clk 00:09:06]} {[%emt 00:00:14]}
Bxe4 {[%clk 00:01:53]} {[%emt 00:01:02]} 24. Nxe4 {[%clk 00:09:07]} {[%emt
00:00:01]} Rd5 {[%clk 00:01:24]} {[%emt 00:00:32]} 25. c4 {[%clk 00:08:41]}
{[%emt 00:00:29]} dxc3 {[%clk 00:01:26]} {[%emt 00:00:01]} 26. bxc3 {[%clk
00:08:39]} {[%emt 00:00:04]} b6 {[%clk 00:01:00]} {[%emt 00:00:30]} 27. Kg2
{[%clk 00:07:37]} {[%emt 00:01:04]} Ne7 {[%clk 00:00:46]} {[%emt 00:00:17]} 28.
Kg3 {[%clk 00:06:58]} {[%emt 00:00:41]} Nf5+ {[%clk 00:00:45]} {[%emt
00:00:07]} 29. Kg4 {[%clk 00:06:39]} {[%emt 00:00:21]} Rd3 {[%clk 00:00:26]}
{[%emt 00:00:21]} 30. Rf2 {[%clk 00:06:02]} {[%emt 00:00:40]} Ne3+ {[%clk
00:00:22]} {[%emt 00:00:08]} 31. Kh4 {[%clk 00:05:11]} {[%emt 00:00:54]} Nf5+
{[%clk 00:00:22]} {[%emt 00:00:03]} 32. Kg4 {[%clk 00:05:01]} {[%emt 00:00:12]}
Ne3+ {[%clk 00:00:22]} {[%emt 00:00:03]} 33. Kh4 {[%clk 00:04:50]} {[%emt
00:00:13]} Rxf4+ {[%clk 00:00:16]} {[%emt 00:00:10]} 34. Rxf4 {[%clk 00:04:41]}
{[%emt 00:00:11]} Ng2+ {[%clk 00:00:19]} 35. Kg4 {[%clk 00:04:16]} {[%emt
00:00:28]} Nxe1 {[%clk 00:00:21]} {[%emt 00:00:02]} 36. e6 {[%clk 00:03:37]}
{[%emt 00:00:42]} Rd8 {[%clk 00:00:23]} {[%emt 00:00:01]} 37. Nd6 {[%clk
00:03:14]} {[%emt 00:00:26]} Rxd6 {[%clk 00:00:25]} {[%emt 00:00:01]} 38. e7
{[%clk 00:03:16]} Rg6+ {[%clk 00:00:19]} {[%emt 00:00:10]} 39. Kh3 {[%emt
00:00:14]} Re6 40. Rf8+ {[%clk 00:03:07]} Kh7 {[%clk 00:00:24]} 41. e8=Q {[%clk
00:03:08]} {[%emt 00:00:01]} Rxe8 {[%clk 00:00:25]} {[%emt 00:00:03]} 42. Rxe8
{[%clk 00:03:10]} Nd3 {[%clk 00:00:25]} {[%emt 00:00:03]} 43. Ra8 {[%clk
00:03:05]} {[%emt 00:00:08]} Nf4+ {[%clk 00:00:16]} {[%emt 00:00:12]} 44. Kg4
{[%clk 00:03:03]} {[%emt 00:00:05]} Nd5 {[%clk 00:00:19]} 45. Rxa7 {[%clk
00:02:59]} {[%emt 00:00:08]} Nxc3 {[%clk 00:00:21]} {[%emt 00:00:01]} 46. a5
{[%clk 00:03:01]} bxa5 {[%clk 00:00:12]} {[%emt 00:00:12]} 47. Rxa5 {[%clk
00:03:03]} {[%emt 00:00:01]} Ne4 {[%clk 00:00:07]} {[%emt 00:00:08]} 48. Kf4
{[%clk 00:03:02]} {[%emt 00:00:03]} Nf6 {[%clk 00:00:06]} {[%emt 00:00:04]} 49.
Rxc5 {[%clk 00:03:02]} {[%emt 00:00:03]} Kg6 {[%clk 00:00:09]} {[%emt
00:00:01]} 50. Ra5 {[%clk 00:03:01]} {[%emt 00:00:04]} Nh5+ {[%clk 00:00:10]}
{[%emt 00:00:02]} 51. Ke4 {[%clk 00:02:47]} {[%emt 00:00:17]} Nf6+ {[%clk
00:00:12]} 52. Kf4 {[%clk 00:02:39]} {[%emt 00:00:10]} Nh5+ {[%clk 00:00:14]}
{[%emt 00:00:02]} 53. Ke5 {[%clk 00:02:40]} {[%emt 00:00:02]} Nf6 {[%clk
00:00:16]} 54. Ke6 {[%clk 00:02:40]} {[%emt 00:00:04]} Ng4 {[%clk 00:00:12]}
{[%emt 00:00:08]} 55. h3 {[%clk 00:02:12]} {[%emt 00:00:30]} Nf6 {[%clk
00:00:14]} 56. Ra3 {[%clk 00:02:08]} {[%emt 00:00:08]} Ne4 {[%clk 00:00:15]}
{[%emt 00:00:02]} 57. Re3 {[%clk 00:02:07]} {[%emt 00:00:04]} Ng5+ {[%clk
00:00:17]} 58. Ke5 {[%clk 00:02:02]} {[%emt 00:00:09]} Kh5 {[%clk 00:00:20]} 59.
Kf5 {[%clk 00:01:56]} {[%emt 00:00:08]} g6+ {[%clk 00:00:05]} {[%emt 00:00:18]}
60. Kf6 {[%clk 00:01:48]} {[%emt 00:00:11]} Nh7+ {[%clk 00:00:07]} {[%emt
00:00:02]} 61. Kg7 {[%clk 00:01:45]} {[%emt 00:00:06]} Ng5 {[%clk 00:00:10]} 62.
h4 {[%clk 00:01:41]} {[%emt 00:00:07]} Kxh4 {[%clk 00:00:07]} {[%emt 00:00:05]}
63. Kxg6 {[%clk 00:01:42]} {[%emt 00:00:02]} h5 {[%clk 00:00:05]} {[%emt
00:00:07]} 64. Re5 {[%clk 00:01:30]} {[%emt 00:00:15]} Nh3 {[%clk 00:00:06]}
{[%emt 00:00:01]} 65. Rxh5+ {[%clk 00:01:31]} {[%emt 00:00:02]} Kg4 {[%clk
00:00:09]} 66. Ra5 {[%clk 00:01:32]} {[%emt 00:00:02]} Nf4+ {[%clk 00:00:09]}
{[%emt 00:00:24]} 67. Kf6 {[%clk 00:01:34]} {[%emt 00:00:02]} Nd3 {[%clk
00:00:10]} {[%emt 00:00:02]} 68. Ra4+ {[%clk 00:01:31]} {[%emt 00:00:05]} Kf3
{[%clk 00:00:12]} {[%emt 00:00:01]} 69. Kf5 {[%clk 00:01:29]} {[%emt 00:00:05]}
Ke3 {[%clk 00:00:14]} {[%emt 00:00:01]} 70. Rh4 {[%clk 00:01:23]} {[%emt
00:00:07]} Nf2 {[%clk 00:00:14]} {[%emt 00:00:04]} 71. Rh8 {[%clk 00:00:31]}
{[%emt 00:00:55]} Nd3 {[%clk 00:00:14]} {[%emt 00:00:04]} 72. Rd8 {[%clk
00:00:28]} {[%emt 00:00:05]} Nc5 {[%clk 00:00:10]} {[%emt 00:00:07]} 73. Ke5
{[%emt 00:00:09]} Nd3+ 74. Kd5 {[%clk 00:00:24]} {[%emt 00:00:01]} Nf4+ {[%clk
00:00:15]} {[%emt 00:00:01]} 75. Kc4 {[%clk 00:00:26]} {[%emt 00:00:01]} Ke4
{[%clk 00:00:16]} {[%emt 00:00:02]} 76. Re8 {[%clk 00:00:25]} {[%emt 00:00:04]}
Kf5 {[%clk 00:00:18]} {[%emt 00:00:01]} 77. Kd4 {[%clk 00:00:22]} {[%emt
00:00:06]} Ne6+ {[%clk 00:00:19]} {[%emt 00:00:01]} 78. Ke3 {[%clk 00:00:21]}
{[%emt 00:00:04]} Ke5 {[%clk 00:00:20]} {[%emt 00:00:03]} 79. Rh8 {[%clk
00:00:21]} {[%emt 00:00:03]} Kd5 {[%clk 00:00:14]} {[%emt 00:00:09]} 80. Rh5+
{[%clk 00:00:20]} {[%emt 00:00:04]} Kd6 {[%clk 00:00:17]} {[%emt 00:00:01]} 81.
Ke4 {[%clk 00:00:15]} {[%emt 00:00:07]} Nc5+ {[%clk 00:00:19]} 82. Kd4 {[%clk
00:00:16]} {[%emt 00:00:02]} Ne6+ {[%clk 00:00:21]} 83. Kc4 {[%clk 00:00:18]}
Nf4 {[%clk 00:00:21]} {[%emt 00:00:03]} 84. Rg5 {[%clk 00:00:13]} {[%emt
00:00:09]} Ne6 {[%clk 00:00:23]} {[%emt 00:00:01]} 85. Rd5+ {[%clk 00:00:13]}
{[%emt 00:00:03]} Ke7 {[%clk 00:00:21]} {[%emt 00:00:05]} 86. Rh5 {[%clk
00:00:07]} {[%emt 00:00:09]} Kf6 {[%clk 00:00:23]} {[%emt 00:00:01]} 87. Kd3
{[%clk 00:00:06]} {[%emt 00:00:03]} Nf4+ {[%clk 00:00:24]} {[%emt 00:00:03]} 88.
Kc3 {[%clk 00:00:07]} Ke5 {[%clk 00:00:26]} {[%emt 00:00:03]} 89. Rh1 1/2-1/2

[Event "Paul Kerese Mälestusfestival 2022 Kiirturniir"]
[Site "Pärnu, Estonia Resort Hotel & Spa"]
[Date "????.??.??"]
[Round "3.8"]
[White "Shvyrjov, Igor"]
[Black "Vohla, Mihkel"]
[Result "1/2-1/2"]
[TimeControl "15 minutit partiile + 3 sek käigule"]
[WhiteTitle "GM"]
[WhiteElo "2153"]
[BlackElo "1720"]

1. d4 {[%clk 00:13:49]} {[%emt 00:01:16]} e6 {[%clk 00:15:04]} {[%emt
00:00:03]} 2. Nf3 {[%clk 00:13:49]} {[%emt 00:00:03]} d5 {[%clk 00:15:04]}
{[%emt 00:00:03]} 3. c3 {[%clk 00:13:47]} {[%emt 00:00:05]} c5 {[%clk
00:15:05]} {[%emt 00:00:02]} 4. e3 {[%clk 00:13:42]} {[%emt 00:00:08]} Nc6
{[%clk 00:15:06]} {[%emt 00:00:03]} 5. Bd3 {[%clk 00:13:44]} {[%emt 00:00:01]}
Nf6 {[%clk 00:14:56]} {[%emt 00:00:13]} 6. Nbd2 {[%clk 00:13:46]} Bd6 {[%clk
00:14:57]} {[%emt 00:00:03]} 7. O-O {[%clk 00:13:46]} {[%emt 00:00:02]} O-O
{[%clk 00:14:56]} {[%emt 00:00:04]} 8. dxc5 {[%clk 00:13:34]} {[%emt 00:00:15]}
Bxc5 {[%clk 00:14:57]} {[%emt 00:00:02]} 9. e4 {[%clk 00:13:31]} {[%emt
00:00:06]} a5 {[%clk 00:14:45]} {[%emt 00:00:15]} 10. Qe2 {[%clk 00:13:28]}
{[%emt 00:00:06]} d4 {[%clk 00:14:30]} {[%emt 00:00:18]} 11. e5 {[%clk
00:12:56]} {[%emt 00:00:35]} Nd5 {[%clk 00:13:25]} {[%emt 00:01:09]} 12. Nb3
{[%clk 00:12:55]} {[%emt 00:00:04]} Bb6 {[%clk 00:12:50]} {[%emt 00:00:37]} 13.
Nbxd4 {[%clk 00:11:51]} {[%emt 00:01:06]} Nxd4 {[%clk 00:12:52]} {[%emt
00:00:02]} 14. cxd4 {[%clk 00:11:52]} {[%emt 00:00:02]} Nb4 {[%clk 00:12:12]}
{[%emt 00:00:43]} 15. Be4 {[%clk 00:10:52]} {[%emt 00:01:03]} Bd7 {[%clk
00:11:38]} {[%emt 00:00:38]} 16. a3 {[%clk 00:10:49]} {[%emt 00:00:06]} Nd5
{[%clk 00:11:15]} {[%emt 00:00:25]} 17. Bg5 {[%clk 00:10:09]} {[%emt 00:00:43]}
Qe8 {[%clk 00:11:12]} {[%emt 00:00:06]} 18. Rfc1 {[%clk 00:10:00]} {[%emt
00:00:11]} h6 {[%clk 00:11:11]} {[%emt 00:00:04]} 19. Be3 {[%clk 00:09:25]}
{[%emt 00:00:38]} Bc6 {[%clk 00:10:56]} {[%emt 00:00:19]} 20. Nd2 {[%clk
00:09:19]} {[%emt 00:00:08]} Rd8 {[%clk 00:10:53]} {[%emt 00:00:06]} 21. Nc4
{[%clk 00:08:20]} {[%emt 00:01:01]} Bb5 {[%clk 00:10:52]} {[%emt 00:00:05]} 22.
Bd3 {[%clk 00:08:14]} {[%emt 00:00:09]} Bxd4 {[%clk 00:10:12]} {[%emt
00:00:43]} 23. Nd6 {[%clk 00:07:37]} {[%emt 00:00:40]} Bxd3 {[%clk 00:10:07]}
{[%emt 00:00:09]} 24. Qxd3 {[%clk 00:07:39]} {[%emt 00:00:01]} Rxd6 {[%clk
00:09:53]} {[%emt 00:00:17]} 25. exd6 {[%clk 00:07:38]} {[%emt 00:00:03]} Bxb2
{[%clk 00:09:40]} {[%emt 00:00:16]} 26. Bd4 {[%clk 00:05:17]} {[%emt 00:02:24]}
Nf4 {[%clk 00:08:57]} {[%emt 00:00:47]} 27. Qe4 {[%clk 00:04:50]} {[%emt
00:00:29]} Bxd4 {[%clk 00:08:53]} {[%emt 00:00:07]} 28. Qxf4 {[%clk 00:04:44]}
{[%emt 00:00:09]} Bxa1 {[%clk 00:08:53]} {[%emt 00:00:03]} 29. Rxa1 {[%clk
00:04:47]} Qc6 {[%clk 00:08:22]} {[%emt 00:00:34]} 30. Rd1 {[%clk 00:04:45]}
{[%emt 00:00:05]} Rd8 {[%clk 00:08:18]} {[%emt 00:00:07]} 31. h4 {[%clk
00:04:37]} {[%emt 00:00:11]} b5 {[%clk 00:07:57]} {[%emt 00:00:24]} 32. g4
{[%clk 00:04:36]} {[%emt 00:00:03]} Qc2 {[%clk 00:07:42]} {[%emt 00:00:18]} 33.
Rc1 {[%clk 00:02:39]} {[%emt 00:02:00]} Qd3 {[%clk 00:07:43]} {[%emt 00:00:02]}
34. Rc7 {[%clk 00:02:41]} {[%emt 00:00:02]} Qd1+ {[%clk 00:07:43]} {[%emt
00:00:02]} 35. Kg2 {[%clk 00:02:40]} {[%emt 00:00:05]} Qd5+ {[%clk 00:07:38]}
{[%emt 00:00:08]} 36. Kg1 {[%clk 00:02:39]} {[%emt 00:00:04]} e5 {[%clk
00:07:38]} {[%emt 00:00:03]} 37. Qf5 {[%clk 00:02:39]} {[%emt 00:00:03]} Rxd6
{[%clk 00:07:13]} {[%emt 00:00:29]} 38. g5 {[%clk 00:02:29]} {[%emt 00:00:12]}
hxg5 {[%clk 00:06:06]} {[%emt 00:01:10]} 39. hxg5 {[%clk 00:02:31]} g6 {[%clk
00:05:50]} {[%emt 00:00:20]} 40. Rc8+ {[%clk 00:02:27]} {[%emt 00:00:06]} Rd8
{[%clk 00:05:36]} {[%emt 00:00:17]} 41. Rxd8+ {[%clk 00:02:24]} {[%emt
00:00:07]} Qxd8 {[%clk 00:05:37]} {[%emt 00:00:03]} 42. Qxe5 {[%clk 00:02:26]}
b4 {[%clk 00:04:52]} {[%emt 00:00:47]} 43. axb4 {[%clk 00:02:28]} {[%emt
00:00:02]} axb4 {[%clk 00:04:54]} {[%emt 00:00:01]} 44. Kg2 {[%clk 00:01:30]}
{[%emt 00:01:01]} b3 {[%clk 00:04:54]} {[%emt 00:00:02]} 45. Qb5 {[%clk
00:01:29]} {[%emt 00:00:04]} b2 {[%clk 00:04:30]} {[%emt 00:00:27]} 46. Qxb2
{[%clk 00:01:30]} {[%emt 00:00:02]} Qxg5+ {[%clk 00:04:32]} {[%emt 00:00:02]}
47. Kf1 {[%clk 00:01:32]} Qf4 {[%clk 00:04:26]} {[%emt 00:00:09]} 48. Qc3
{[%clk 00:01:29]} {[%emt 00:00:06]} g5 {[%clk 00:04:21]} {[%emt 00:00:08]} 49.
Qc8+ {[%clk 00:01:29]} {[%emt 00:00:03]} Kg7 {[%clk 00:04:16]} {[%emt
00:00:07]} 50. Qc3+ {[%clk 00:01:30]} {[%emt 00:00:02]} f6 {[%clk 00:04:18]}
{[%emt 00:00:01]} 51. Qd3 {[%clk 00:01:24]} {[%emt 00:00:09]} g4 {[%clk
00:04:15]} {[%emt 00:00:06]} 52. Qd7+ {[%clk 00:01:26]} {[%emt 00:00:02]} Kh6
{[%clk 00:04:02]} {[%emt 00:00:16]} 53. Qd3 {[%clk 00:01:13]} {[%emt 00:00:15]}
Kg5 {[%clk 00:03:51]} {[%emt 00:00:14]} 54. Qh7 {[%clk 00:01:07]} {[%emt
00:00:10]} Qf3 {[%clk 00:03:47]} {[%emt 00:00:07]} 55. Qg7+ {[%clk 00:01:07]}
{[%emt 00:00:03]} Kf5 {[%clk 00:03:45]} {[%emt 00:00:05]} 56. Qh7+ {[%clk
00:01:07]} {[%emt 00:00:03]} Ke6 {[%clk 00:03:41]} {[%emt 00:00:07]} 57. Qg8+
{[%clk 00:01:09]} {[%emt 00:00:01]} Ke5 {[%clk 00:03:27]} {[%emt 00:00:17]} 58.
Kg1 {[%clk 00:01:09]} {[%emt 00:00:03]} Qf5 {[%clk 00:02:51]} {[%emt 00:00:38]}
59. Qb8+ {[%clk 00:01:07]} {[%emt 00:00:05]} Ke4 {[%clk 00:02:50]} {[%emt
00:00:04]} 60. Qb1+ {[%clk 00:01:07]} {[%emt 00:00:04]} Kf4 {[%clk 00:02:49]}
{[%emt 00:00:04]} 61. Qc1+ {[%clk 00:01:09]} Ke5 {[%clk 00:02:45]} {[%emt
00:00:07]} 62. Qc5+ {[%clk 00:01:11]} {[%emt 00:00:01]} Ke6 {[%clk 00:02:45]}
{[%emt 00:00:04]} 63. Qc8+ {[%clk 00:01:13]} {[%emt 00:00:01]} Ke5 {[%clk
00:02:45]} {[%emt 00:00:03]} 64. Qc5+ {[%clk 00:01:15]} Ke4 {[%clk 00:02:12]}
{[%emt 00:00:36]} 65. Qc2+ {[%clk 00:01:15]} {[%emt 00:00:02]} Kf4 {[%clk
00:02:12]} {[%emt 00:00:03]} 66. Qc1+ {[%clk 00:01:14]} {[%emt 00:00:05]} Ke5
{[%clk 00:02:07]} {[%emt 00:00:08]} 67. Qc5+ {[%clk 00:01:16]} {[%emt
00:00:01]} Kd5 {[%emt 00:00:11]} 1/2-1/2

[Event "Paul Kerese Mälestusfestival 2022 Kiirturniir"]
[Site "Pärnu, Estonia Resort Hotel & Spa"]
[Date "2022.07.23"]
[Round "4.1"]
[White "Volodin, Aleksandr"]
[Black "Shirov, Alexei"]
[Result "1/2-1/2"]
[TimeControl "15 minutit partiile + 3 sek käigule"]
[WhiteTitle "GM"]
[BlackTitle "GM"]
[BlackFideId "2209390"]
[WhiteElo "2407"]
[BlackElo "2621"]

1. d4 {[%clk 00:14:42]} {[%emt 00:00:23]} d5 {[%clk 00:15:04]} {[%emt
00:00:02]} 2. c4 {[%clk 00:14:43]} {[%emt 00:00:03]} c6 {[%clk 00:15:06]} 3.
Nf3 {[%clk 00:14:41]} {[%emt 00:00:05]} Nf6 {[%clk 00:15:07]} {[%emt 00:00:01]}
4. e3 {[%clk 00:14:37]} {[%emt 00:00:08]} Bf5 {[%clk 00:15:09]} {[%emt
00:00:01]} 5. Nc3 {[%clk 00:14:35]} {[%emt 00:00:05]} e6 {[%clk 00:15:10]}
{[%emt 00:00:02]} 6. Nh4 {[%clk 00:14:20]} {[%emt 00:00:18]} Be4 {[%clk
00:15:11]} {[%emt 00:00:02]} 7. f3 {[%clk 00:14:13]} {[%emt 00:00:10]} Bg6
{[%clk 00:15:12]} {[%emt 00:00:02]} 8. Nxg6 {[%clk 00:12:13]} {[%emt 00:02:03]}
hxg6 {[%clk 00:15:13]} {[%emt 00:00:02]} 9. f4 {[%clk 00:11:35]} {[%emt
00:00:41]} Bb4 {[%clk 00:11:51]} {[%emt 00:03:24]} 10. Bd3 {[%clk 00:08:54]}
{[%emt 00:02:45]} dxc4 {[%clk 00:09:53]} {[%emt 00:02:01]} 11. Bxc4 {[%clk
00:08:55]} {[%emt 00:00:01]} Ne4 {[%clk 00:09:54]} {[%emt 00:00:02]} 12. O-O
{[%clk 00:08:51]} {[%emt 00:00:08]} Bxc3 {[%clk 00:09:55]} {[%emt 00:00:02]} 13.
bxc3 {[%clk 00:08:53]} {[%emt 00:00:01]} b5 {[%clk 00:09:56]} {[%emt 00:00:01]}
14. Qc2 {[%clk 00:07:24]} {[%emt 00:01:32]} Qh4 {[%clk 00:09:41]} {[%emt
00:00:19]} 15. Qxe4 {[%clk 00:07:25]} {[%emt 00:00:02]} Qxh2+ {[%clk 00:09:41]}
{[%emt 00:00:02]} 16. Kf2 {[%clk 00:07:27]} Qh4+ {[%clk 00:09:24]} {[%emt
00:00:20]} 17. Kg1 {[%clk 00:05:43]} {[%emt 00:01:48]} bxc4 {[%clk 00:09:10]}
{[%emt 00:00:17]} 18. Ba3 {[%clk 00:05:35]} {[%emt 00:00:10]} Qh2+ {[%clk
00:04:29]} {[%emt 00:04:44]} 19. Kf2 {[%clk 00:05:37]} {[%emt 00:00:01]} Qh4+
{[%clk 00:04:31]} 20. Kg1 {[%clk 00:05:39]} {[%emt 00:00:02]} Qh2+ {[%clk
00:04:12]} {[%emt 00:00:22]} 21. Kf2 {[%clk 00:05:41]} {[%emt 00:00:02]} Qh4+
{[%emt 00:00:03]} 22. Kg1 {[%emt 00:00:16]} Qh5 23. Rab1 {[%emt 00:00:01]} Qd5
24. Qxd5 exd5 25. Rb7 {[%emt 00:00:04]} Nd7 {[%emt 00:00:02]} 26. Rc7 Nb8
{[%clk 00:15:03]} {[%emt 00:00:06]} 27. Rb7 1/2-1/2

[Event "Paul Kerese Mälestusfestival 2022 Kiirturniir"]
[Site "Pärnu, Estonia Resort Hotel & Spa"]
[Date "2022.07.23"]
[Round "4.2"]
[White "Agrest, Evgenij"]
[Black "Chukavin, Kirill"]
[Result "1-0"]
[TimeControl "15 minutit partiile + 3 sek käigule"]
[WhiteTitle "GM"]
[BlackTitle "FM"]
[WhiteElo "2563"]
[BlackElo "2418"]

1. Nf3 {[%clk 00:15:02]} {[%emt 00:00:03]} d5 {[%clk 00:15:03]} {[%emt
00:00:03]} 2. b3 {[%clk 00:15:00]} {[%emt 00:00:06]} Nf6 {[%clk 00:14:56]}
{[%emt 00:00:09]} 3. Bb2 {[%clk 00:15:00]} {[%emt 00:00:02]} c6 {[%clk
00:14:48]} {[%emt 00:00:11]} 4. c4 {[%clk 00:14:53]} {[%emt 00:00:10]} e6
{[%clk 00:14:18]} {[%emt 00:00:34]} 5. e3 {[%clk 00:14:30]} {[%emt 00:00:25]}
Nbd7 {[%clk 00:14:17]} {[%emt 00:00:04]} 6. Qc2 {[%clk 00:14:16]} {[%emt
00:00:18]} Bd6 {[%clk 00:14:13]} {[%emt 00:00:06]} 7. Nc3 {[%clk 00:14:17]}
{[%emt 00:00:02]} Qe7 {[%clk 00:12:27]} {[%emt 00:01:49]} 8. h3 {[%clk
00:13:53]} {[%emt 00:00:26]} a6 {[%clk 00:12:22]} {[%emt 00:00:09]} 9. g4
{[%clk 00:13:51]} {[%emt 00:00:05]} h6 {[%clk 00:12:12]} {[%emt 00:00:13]} 10.
Bg2 {[%clk 00:13:12]} {[%emt 00:00:41]} O-O {[%clk 00:11:35]} {[%emt 00:00:40]}
11. d4 {[%clk 00:12:31]} {[%emt 00:00:44]} e5 {[%clk 00:10:19]} {[%emt
00:01:20]} 12. cxd5 {[%clk 00:11:38]} {[%emt 00:00:56]} Nxd5 {[%clk 00:09:50]}
{[%emt 00:00:32]} 13. Nxd5 {[%clk 00:11:15]} {[%emt 00:00:25]} cxd5 {[%clk
00:09:52]} {[%emt 00:00:02]} 14. dxe5 {[%clk 00:11:16]} {[%emt 00:00:02]} Nxe5
{[%clk 00:09:14]} {[%emt 00:00:42]} 15. Nd4 {[%clk 00:11:14]} {[%emt 00:00:03]}
Bb4+ {[%clk 00:07:58]} {[%emt 00:01:20]} 16. Bc3 {[%clk 00:10:45]} {[%emt
00:00:32]} Be6 {[%clk 00:07:08]} {[%emt 00:00:53]} 17. Bxb4 {[%clk 00:10:03]}
{[%emt 00:00:45]} Qxb4+ {[%clk 00:07:08]} {[%emt 00:00:03]} 18. Ke2 {[%clk
00:10:03]} {[%emt 00:00:02]} Rac8 {[%clk 00:06:50]} {[%emt 00:00:22]} 19. Qd2
{[%clk 00:10:00]} {[%emt 00:00:06]} Qxd2+ {[%clk 00:06:15]} {[%emt 00:00:38]}
20. Kxd2 {[%clk 00:10:00]} {[%emt 00:00:02]} Nc6 {[%clk 00:06:10]} {[%emt
00:00:09]} 21. Nxc6 {[%clk 00:09:11]} {[%emt 00:00:52]} Rxc6 {[%clk 00:03:26]}
{[%emt 00:02:48]} 22. Rac1 {[%clk 00:08:52]} {[%emt 00:00:20]} Rfc8 {[%clk
00:03:28]} {[%emt 00:00:02]} 23. Rxc6 {[%clk 00:08:46]} {[%emt 00:00:09]} bxc6
{[%clk 00:03:08]} {[%emt 00:00:23]} 24. Rc1 {[%clk 00:08:46]} {[%emt 00:00:02]}
c5 {[%clk 00:03:05]} {[%emt 00:00:07]} 25. f4 {[%clk 00:08:46]} {[%emt
00:00:03]} g6 {[%clk 00:02:53]} {[%emt 00:00:14]} 26. Kc3 {[%clk 00:07:42]}
{[%emt 00:01:06]} Kf8 {[%clk 00:02:32]} {[%emt 00:00:25]} 27. Rd1 {[%clk
00:06:56]} {[%emt 00:00:49]} d4+ {[%clk 00:02:26]} {[%emt 00:00:09]} 28. Kd2
{[%clk 00:06:39]} {[%emt 00:00:20]} dxe3+ {[%clk 00:02:11]} {[%emt 00:00:18]}
29. Kxe3 {[%clk 00:06:40]} {[%emt 00:00:01]} c4 {[%clk 00:02:10]} {[%emt
00:00:05]} 30. Rc1 {[%clk 00:06:12]} {[%emt 00:00:30]} cxb3 {[%clk 00:02:00]}
{[%emt 00:00:13]} 31. Rxc8+ {[%clk 00:06:14]} {[%emt 00:00:01]} Bxc8 {[%clk
00:02:02]} 32. axb3 {[%clk 00:06:15]} {[%emt 00:00:02]} a5 {[%clk 00:01:43]}
{[%emt 00:00:22]} 33. Kd4 {[%clk 00:06:12]} {[%emt 00:00:06]} h5 {[%clk
00:00:49]} {[%emt 00:00:58]} 34. gxh5 {[%clk 00:05:36]} {[%emt 00:00:39]} gxh5
{[%clk 00:00:50]} {[%emt 00:00:01]} 35. h4 {[%clk 00:05:37]} {[%emt 00:00:02]}
Kg7 {[%clk 00:00:41]} {[%emt 00:00:12]} 36. Be4 {[%clk 00:05:28]} {[%emt
00:00:11]} Kf6 {[%clk 00:00:32]} {[%emt 00:00:13]} 37. Kc5 {[%clk 00:05:30]}
{[%emt 00:00:01]} Bf5 {[%clk 00:00:13]} {[%emt 00:00:21]} 38. Bd5 {[%clk
00:05:04]} {[%emt 00:00:29]} Be6 {[%clk 00:00:06]} {[%emt 00:00:10]} 39. Bxe6
{[%clk 00:04:55]} {[%emt 00:00:12]} fxe6 {[%emt 00:00:26]} 1-0